lending/lending_fUSD_20240824
["ID","MTS","AMOUNT","RATE_DAILY","PERIOD"]
[335840700,1724526637963,-5463.04899773,0.000107,2]
[335840701,1724526637973,-2058.04100227,0.000107,2]
[335840702,1724526637985,-1718.52689773,0.000107,2]
[335840703,1724526637995,-3085.3859,0.000107,2]
[335840704,1724526638005,-2500.0,0.000107,2]
[335840705,1724526638015,-389.2123,0.000107,2]
[335840706,1724526638024,-1015.89,0.000107,2]
[335840707,1724526638034,-1415.1743,0.000107,2]
[335840708,1724526638043,-632.17523164,0.000107,2]
[335840709,1724526638053,-2318.31220851,0.000107,2]
[335840710,1724526638063,-2318.31220851,0.000107,2]
[335840711,1724526638073,-327.12782428,0.00010707,2]
[335840712,1724526638084,-499.99,0.00010707,2]
[335840713,1724526638094,-441.45403,0.0001071,2]
[335840714,1724526638104,-490.92711518,0.00010713,2]
[335840715,1724526638114,-441.45403,0.0001075,2]
[335840716,1724526638123,-441.45403,0.0001079,2]
[335840717,1724526638133,-228.51892415,0.00010797,2]
[335840718,1724526638152,-276.0958533,0.00010797,2]
[335840719,1724526638163,-2939.9999999,0.00010797,2]
[335840720,1724526638174,-4295.9824655,0.00010797,2]
[335840721,1724526638186,-22403.27663849,0.00010797,2]
[335840722,1724526638196,-446.53919352,0.00010797,2]
[335840723,1724526638205,-653.64489815,0.00010799,2]
[335840724,1724526638217,-719.75091236,0.00010799,2]
[335840725,1724526638227,-156.90388403,0.00010799,2]
[335840727,1724526638236,-110849.7670592,0.000108,2]
[335840729,1724526638248,-762.69359376,0.000108,2]
[335840731,1724526638259,-27480.72739471,0.000108,2]
[335840732,1724526638284,-21840.0,0.000108,2]
[335840733,1724526638296,-4392.91305409,0.000108,2]
[335840949,1724526640693,-643.23488832,0.000108,2]
[335840951,1724526640705,-1502.36748721,0.000108,2]
[335840953,1724526640717,-10066.1744346,0.000108,2]
[335840955,1724526640729,-3031.43850912,0.000108,2]
[335840958,1724526640741,-1785.82599457,0.000108,2]
[335840960,1724526640756,-4140.27821322,0.000108,2]
[335840962,1724526640768,-587.72819476,0.000108,2]
[335840965,1724526640788,-1174.90992479,0.000108,2]
[335840975,1724526640868,-757.74520922,0.000108,2]
[335840977,1724526640878,-3262.15420286,0.000108,2]
[335840979,1724526640890,-938.43973617,0.000108,2]
[335840981,1724526640902,-6301.9788,0.000108,2]
[335840984,1724526640913,-1453.4031908,0.000108,2]
[335840986,1724526640929,-2806.8,0.000108,2]
[335841001,1724526641061,-30821.62631371,0.000108,2]
[335841004,1724526641072,-8457.48144402,0.000108,2]
[335841006,1724526641083,-18527.41837375,0.000108,2]
[335841008,1724526641094,-1031.00172718,0.000108,2]
[335841010,1724526641105,-7456.02210702,0.000108,2]
[335841206,1724526643007,-370.19267968,0.000108,2]
[335841208,1724526643018,-562.41626868,0.000108,2]
[335841210,1724526643029,-1385.902562,0.000108,2]
[335841212,1724526643040,-5971.9,0.000108,2]
[335841214,1724526643052,-3445.18242437,0.000108,2]
[335841217,1724526643063,-21986.27470492,0.000108,2]
[335841219,1724526643074,-10877.31968114,0.000108,2]
[335841221,1724526643086,-651.33802245,0.000108,2]
[335841224,1724526643102,-6654.157102,0.000108,2]
[335841226,1724526643116,-1224.5387,0.000108,2]
[335841228,1724526643127,-1738.02113,0.000108,2]
[335841231,1724526643144,-5983.9,0.000108,2]
[335841233,1724526643156,-781.874423,0.000108,2]
[335841236,1724526643171,-704.09202264,0.000108,2]
[335841248,1724526643274,-682.39886699,0.000108,2]
[335841250,1724526643286,-22420.08937347,0.000108,2]
[335841252,1724526643298,-28619.65095822,0.000108,2]
[335841255,1724526643309,-6855.90067227,0.000108,2]
[335841257,1724526643320,-33015.41860167,0.000108,2]
[335841259,1724526643331,-302.1204009,0.000108,2]
[335841261,1724526643342,-1201.87353666,0.000108,2]
[335841263,1724526643354,-2627.76022133,0.000108,2]
[335841266,1724526643369,-1196.04688222,0.000108,2]
[335841268,1724526643380,-5242.74940921,0.000108,2]
[335841498,1724526645830,-3651.45990221,0.000108,2]
[335841500,1724526645841,-2630.82659408,0.000108,2]
[335841503,1724526645853,-453.08776319,0.000108,2]
[335841505,1724526645864,-13962.5,0.000108,2]
[335841507,1724526645876,-1499.90008,0.000108,2]
[335841509,1724526645887,-493.09011844,0.000108,2]
[335841511,1724526645898,-18747.02763147,0.000108,2]
[335841513,1724526645909,-1644.15644672,0.000108,2]
[335841516,1724526645921,-1380.43176568,0.000108,2]
[335841518,1724526645932,-3017.17189591,0.000108,2]
[335841522,1724526645962,-48751.96682396,0.000108,2]
[335841524,1724526645974,-20537.74473871,0.000108,2]
[335841526,1724526645986,-4523.77553368,0.000108,2]
[335841529,1724526645998,-1576.40621,0.000108,2]
[335841531,1724526646010,-371.08009368,0.000108,2]
[335841533,1724526646021,-1638.832655,0.000108,2]
[335841535,1724526646032,-1384.9877526,0.000108,2]
[335841537,1724526646043,-3187.19048631,0.000108,2]
[335841540,1724526646064,-2210.0,0.000108,2]
[335841542,1724526646075,-6223.91249305,0.000108,2]
[335841544,1724526646086,-660.998521,0.000108,2]
[335841547,1724526646097,-1306.89059751,0.000108,2]
[335841549,1724526646108,-6846.23117304,0.000108,2]
[335841551,1724526646119,-569.62893995,0.000108,2]
[335841579,1724526646385,-950.81443091,0.000108,2]
[335841581,1724526646396,-920.11067912,0.000108,2]
[335841583,1724526646412,-3987.91705982,0.000108,2]
[335841848,1724526649586,500.0,0.00010009,2]
[335841959,1724526650834,201.23077006,0.00010009,2]
[335842044,1724526651642,500.0,0.0001,3]
[335842093,1724526667950,2473.58430273,0.00010009,2]
[335842095,1724526702349,324.08,8.219e-05,2]
[335842096,1724526708030,425.06,9.83e-05,2]
[335842097,1724526733676,201.76437582,9.962e-05,2]
[335842098,1724526734269,455.44624217,8.219e-05,2]
[335842099,1724526740619,404.44066478,9.962e-05,2]
[335842100,1724526740639,17.45202812,9.962e-05,2]
[335842101,1724526743120,210.15341836,0.0001,2]
[335842102,1724526743354,9772.39455352,8.219e-05,2]
[335842103,1724526743379,8487.45300087,8.219e-05,2]
[335842105,1724526759003,409.92,9.71e-05,2]
[335842109,1724526769701,1102.62699913,9.962e-05,2]
[335842110,1724526769723,10000.0,9.962e-05,2]
[335842111,1724526769746,1410.74597987,9.962e-05,2]
[335842112,1724526776104,1050.0,0.0001,2]
[335842113,1724526780099,500.0,0.0001,2]
[335842118,1724526818137,292.76862131,9.962e-05,2]
[335842119,1724526833913,735.00114648,9.962e-05,2]
[335842120,1724526913670,155.80170695,0.00010009,2]
[335842121,1724526971241,5855.68254539,0.00010009,2]
[335842122,1724526971261,10000.0,0.00010009,2]
[335842123,1724526971280,10000.0,0.00010009,2]
[335842124,1724526971300,9886.30499892,0.00010009,2]
[335842125,1724526999618,113.69500108,9.641e-05,2]
[335842126,1724526999641,113.22499892,9.641e-05,2]
[335842127,1724527020093,5868.4654,0.0001,2]
[335842128,1724527024013,172.29115359,5e-05,2]
[335842129,1724527035151,700.0,8.22e-05,2]
[335842130,1724527036732,700.0,9.59e-05,2]
[335842131,1724527038545,179.58,9.637e-05,2]
[335842132,1724527046932,174.29490301,5e-05,2]
[335842133,1724527069640,291.90302489,5e-05,2]
[335842134,1724527070430,1800.24051959,0.0001,2]
[335842135,1724527070450,2075.20144762,0.0001,2]
[335842136,1724527071435,7924.79855238,5e-05,2]
[335842137,1724527071456,10000.0,5e-05,2]
[335842138,1724527071481,2490.41529069,5e-05,2]
[335842139,1724527075036,159.22460451,5e-05,2]
[335842140,1724527077980,760.72426636,5e-05,2]
[335842141,1724527079171,1311.65694169,5e-05,2]
[335842142,1724527079780,5277.97889675,5e-05,2]
[335842143,1724527079801,10000.0,5e-05,2]
[335842144,1724527079821,972.29432906,5e-05,2]
[335842145,1724527080844,155.09465107,5e-05,2]
[335842146,1724527084130,693.93284973,5e-05,2]
[335842149,1724527088153,500.0,0.0001,2]
[335842150,1724527089970,3074.38968522,5e-05,2]
[335842151,1724527095471,1270.23398053,5e-05,2]
[335842153,1724527099264,412.35152068,5e-05,2]
[335842154,1724527100683,1813.17,9.634e-05,2]
[335842157,1724527109006,160.15195181,0.00010009,2]
[335842158,1724527121873,948.3810319,6.061e-05,2]
[335842159,1724527121897,10000.0,6.061e-05,2]
[335842160,1724527121917,3676.02332436,6.061e-05,2]
[335842161,1724527132476,3073.85347994,6.061e-05,2]
[335842162,1724527156038,155.99731579,0.00010009,2]
[335842163,1724527170853,3094.12587991,9.722e-05,2]
[335842164,1724527170874,10000.0,9.722e-05,2]
[335842165,1724527170900,90.97412009,9.722e-05,2]
[335842166,1724527175139,218.91005949,0.00010009,2]
[335842167,1724527177446,289.69731794,0.00010009,2]
[335842168,1724527191234,380.75615152,0.00010009,2]
[335842169,1724527206070,1192.41051291,0.00010009,2]
[335842170,1724527207635,264.75871737,0.00010009,2]
[335842171,1724527214527,155.0,0.00010009,2]
[335842172,1724527218031,500.0,0.0001,2]
[335842174,1724527237935,529.51623645,0.00010009,2]
[335842175,1724527256284,337.3,8.219e-05,2]
[335842177,1724527283158,500.0,0.0001,2]
[335842178,1724527283912,500.0,0.0001,2]
[335842179,1724527284656,500.0,0.0001,2]
[335842180,1724527285463,500.0,0.0001,2]
[335842181,1724527293697,155.0,0.00010009,2]
[335842182,1724527304679,672.06,9.665e-05,2]
[335842183,1724527319767,15483.10746637,0.00010009,2]
[335842184,1724527323717,225.87484426,0.00010009,2]
[335842185,1724527344683,155.0,0.00010009,2]
[335842187,1724527350816,601.94,0.0001,2]
[335842188,1724527361236,203.41395605,0.00010009,2]
[335842189,1724527364345,255.27856542,0.00010009,2]
[335842190,1724527370965,595.90557673,9.926e-05,2]
[335842192,1724527398538,212.53,9.707e-05,2]
[335842193,1724527399377,600.0,8.22e-05,2]
[335842194,1724527400954,600.0,9.59e-05,2]
[335842195,1724527409494,155.0,0.00010009,2]
[335842196,1724527410828,1852.42,9.734e-05,2]
[335842197,1724527414332,500.0,0.0001,2]
[335842198,1724527415091,500.0,0.0001,2]
[335842199,1724527417698,2750.12,9.717e-05,2]
[335842201,1724527421487,1270.34237109,0.00010009,2]
[335842202,1724527428081,159.2387282,0.00010009,2]
[335842203,1724527431713,3313.43,9.731e-05,2]
[335842204,1724527435116,383.46287157,9.717e-05,2]
[335842206,1724527437913,194.08966662,9.717e-05,2]
[335842207,1724527438768,16251.72814512,9.717e-05,2]
[335842208,1724527439710,1311.77417235,9.717e-05,2]
[335842209,1724527446666,291.92880218,9.717e-05,2]
[335842210,1724527447398,20415.21384307,9.717e-05,2]
[335842211,1724527453925,155.0,9.717e-05,2]
[335842212,1724527454711,1311.77417235,9.717e-05,2]
[335842213,1724527461846,291.92880218,9.717e-05,2]
[335842214,1724527471298,500.0,9.717e-05,2]
[335842215,1724527471771,500.0,9.717e-05,2]
[335842216,1724527472093,500.0,9.717e-05,2]
[335842217,1724527472301,151.0,9.717e-05,2]
[335842218,1724527472404,500.0,9.717e-05,2]
[335842219,1724527472498,151.0,9.717e-05,2]
[335842220,1724527472716,500.0,9.717e-05,2]
[335842221,1724527473334,500.0,9.717e-05,2]
[335842222,1724527473777,502.0,9.717e-05,2]
[335842223,1724527483907,155.0,9.717e-05,2]
[335842224,1724527507494,1270.34237109,9.717e-05,2]
[335842225,1724527512990,3074.38968522,9.717e-05,2]
[335842226,1724527513213,150.0,9.715e-05,2]
[335842227,1724527514774,16248.8183065,9.717e-05,2]
[335842228,1724527525413,3802.69412089,9.717e-05,2]
[335842229,1724527538049,159.2387282,9.717e-05,2]
[335842230,1724527538301,561.46435579,9.717e-05,2]
[335842231,1724527545253,500.0,0.0001,2]
[335842232,1724527546123,500.0,0.0001,2]
[335842233,1724527546916,500.0,0.0001,2]
[335842234,1724527547697,500.0,0.0001,2]
[335842235,1724527548505,500.0,0.0001,2]
[335842236,1724527549257,500.0,0.0001,2]
[335842237,1724527550278,196.56,7.056e-05,2]
[335842238,1724527553040,159.2387282,9.717e-05,2]
[335842239,1724527560700,1311.77417235,9.717e-05,2]
[335842240,1724527561441,1959.46087116,0.00010009,2]
[335842241,1724527573330,200.0,9.816e-05,2]
[335842242,1724527581674,275.99608633,9.717e-05,2]
[335842243,1724527590968,218.48,9.79e-05,2]
[335842244,1724527610997,310.3530641,9.717e-05,2]
[335842245,1724527614375,711.29320101,0.00010009,2]
[335842246,1724527615069,500.0,0.0001,2]
[335842247,1724527615935,500.0,0.0001,2]
[335842248,1724527616740,638.25,0.0001,2]
[335842249,1724527621539,790.29720272,9.717e-05,2]
[335842251,1724527629849,600.0,0.0001,3]
[335842252,1724527678240,1311.30524971,0.0001,2]
[335842253,1724527713887,2505.08172549,0.00010009,2]
[335842257,1724527745019,3392.13,9.667e-05,2]
[335842258,1724527754472,2000.0,0.00027,120]
[335842259,1724527767790,155.02530429,0.00010009,2]
[335842262,1724527787956,328.77,8.219e-05,2]
[335842263,1724527797546,961.92,9.646e-05,2]
[335842270,1724527799507,300.54178804,0.00010009,2]
[335842272,1724527815370,155.59109973,0.00010009,2]
[335842278,1724527832011,9279.7073461,0.00010009,2]
[335842279,1724527832057,-300.0,0.00010025,2]
[335842280,1724527832068,-300.0,0.00010025,2]
[335842281,1724527832078,-9.07369875,0.00010026,2]
[335842282,1724527832091,-145.92630125,0.00010026,2]
[335842283,1724527832102,-238.17221291,0.00010026,2]
[335842284,1724527832113,-1300.0,0.000101,3]
[335842285,1724527832124,-2000.0,0.000102,3]
[335842286,1724527832135,-2482.5,0.00010299,2]
[335842287,1724527832145,-2600.0,0.000103,3]
[335842288,1724527832156,-150.0,0.00010399,2]
[335842289,1724527832167,-3300.0,0.000104,3]
[335842290,1724527832177,-790.9,0.000104,2]
[335842291,1724527832188,-531.62,0.000104,2]
[335842292,1724527832198,-150.0,0.000104,2]
[335842293,1724527832208,-426.91,0.000104,2]
[335842294,1724527832219,-150.0,0.000104,2]
[335842295,1724527832230,-421.55,0.000104,2]
[335842296,1724527832242,-426.91,0.000104,2]
[335842297,1724527832253,-150.0,0.000104,2]
[335842298,1724527832263,-852.9,0.000104,2]
[335842299,1724527832274,-150.0,0.000104,2]
[335842300,1724527832285,-421.55,0.000104,2]
[335842301,1724527832295,-531.62,0.000104,2]
[335842302,1724527832306,-531.62,0.000104,2]
[335842303,1724527832317,-150.0,0.000104,2]
[335842304,1724527832328,-150.0,0.000104,2]
[335842305,1724527832339,-426.91,0.000104,2]
[335842306,1724527832349,-421.55,0.000104,2]
[335842307,1724527832360,-790.9,0.000104,2]
[335842308,1724527832371,-424.25,0.000104,2]
[335842309,1724527832382,-675.15,0.000104,2]
[335842310,1724527832393,-531.62,0.000104,2]
[335842311,1724527832404,-790.9,0.000104,2]
[335842312,1724527832415,-790.34,0.000104,2]
[335842313,1724527832425,-531.62,0.000104,2]
[335842314,1724527832436,-421.55,0.000104,2]
[335842315,1724527832446,-531.62,0.000104,2]
[335842316,1724527832457,-421.55,0.000104,2]
[335842318,1724527832468,-499.99,0.00010458,2]
[335842319,1724527832479,-328.77,0.00010459,2]
[335842321,1724527832490,-523.08333089,0.00010471,2]
[335842323,1724527832500,-402.73861596,0.00010471,2]
[335842325,1724527832511,-256.96577805,0.00010471,2]
[335842327,1724527832521,-421.55,0.000105,2]
[335842328,1724527832531,-455.63,0.000105,2]
[335842330,1724527832541,-438.08,0.000105,2]
[335842332,1724527832552,-623.43,0.000105,2]
[335842333,1724527832562,-600.0,0.000105,3]
[335842335,1724527832572,-1201.76,0.000105,2]
[335842337,1724527832583,-3294.8956,0.000106,2]
[335842339,1724527832594,-225.0512,0.000106,2]
[335842340,1724527832604,-600.0,0.000106,3]
[335842342,1724527832614,-1338.8536,0.000106,2]
[335842344,1724527832625,-212.7824281,0.00010613,2]
[335842346,1724527832635,-150.0,0.00010634,2]
[335842348,1724527832645,-500.0,0.00010673,2]
[335842350,1724527832655,-972.6849,0.0001069,2]
[335842351,1724527832665,-150.0,0.00010693,2]
[335842353,1724527832676,-150.0,0.00010693,2]
[335842355,1724527832686,-150.0,0.00010697,2]
[335842357,1724527832696,-2022.4053,0.000107,2]
[335842359,1724527832706,-7394.3626,0.000107,2]
[335842361,1724527832717,-533.6032,0.000107,2]
[335842363,1724527832727,-37287.8882,0.000107,2]
[335842365,1724527832738,-506.6185,0.000107,2]
[335842367,1724527832748,-181123.59732795,0.000107,2]
[335842368,1724527832762,-593.55351269,0.000107,2]
[335842369,1724527832775,-2595.45439401,0.000107,2]
[335842370,1724527832787,-588.10718822,0.000107,2]
[335842371,1724527832800,-4781.02268136,0.000107,2]
[335842372,1724527832816,-544.0998858,0.000107,2]
[335842373,1724527832829,-315.04,0.000107,2]
[335842374,1724527832841,-925.07724057,0.000107,2]
[335842375,1724527832853,-966.43463374,0.000107,2]
[335842376,1724527832866,-463.61871879,0.000107,2]
[335842377,1724527832878,-2911.18926774,0.000107,2]
[335842378,1724527832891,-739.69628748,0.000107,2]
[335842396,1724527838573,-5429.70467055,0.000107,2]
[335842398,1724527838584,-1138.09509158,0.000107,2]
[335842400,1724527838596,-649.025,0.000107,2]
[335842403,1724527838610,-620.79838578,0.000107,2]
[335842405,1724527838621,-311.28310362,0.000107,2]
[335842427,1724527840058,-1129.10829927,0.000107,2]
[335842428,1724527840221,-580.3345512,0.000107,2]
[335842429,1724527840267,-968.08777415,0.000107,2]
[335842441,1724527840783,-5063.96244553,0.000107,2]
[335842442,1724527840794,-817.86703771,0.000107,2]
[335842443,1724527840805,-727.40483639,0.000107,2]
[335842444,1724527840839,-21966.65446587,0.000107,2]
[335842445,1724527840849,-27075.8656,0.000107,2]
[335842446,1724527840858,-157.10906012,0.000107,2]
[335842447,1724527840867,-1000.0,0.000107,2]
[335842448,1724527840877,-600.0,0.000107,3]
[335842449,1724527840886,-175.10094526,0.000107,2]
[335842450,1724527840895,-158.653,0.000107,2]
[335842451,1724527840904,-3294.1747,0.00010712,2]
[335842452,1724527840914,-150.66075096,0.00010773,2]
[335842453,1724527840924,-204.78795136,0.00010773,2]
[335842454,1724527840934,-531.62,0.00010795,2]
[335842455,1724527840944,-1061.06,0.00010795,2]
[335842456,1724527840954,-426.45507876,0.00010797,2]
[335842457,1724527840965,-84629.64626376,0.000108,2]
[335842458,1724527840978,-321.930436,0.000108,2]
[335842459,1724527840990,-270.47988691,0.000108,2]
[335842460,1724527841001,-139521.21534765,0.000108,2]
[335842461,1724527841013,-2437.39358701,0.000108,2]
[335842501,1724527846151,-6760.3520621,0.000108,2]
[335842503,1724527846163,-3225.74169542,0.000108,2]
[335842505,1724527846179,-398205.30287752,0.000108,2]
[335842514,1724527903519,230.51,9.947e-05,2]
[335842515,1724527918890,374.01,9.952e-05,2]
[335842517,1724528003204,1000.0,9.909e-05,2]
[335842519,1724528120208,225.21,9.846e-05,2]
[335842520,1724528129697,500.0,0.0001,2]
[335842521,1724528130547,179.0,0.0001,2]
[335842522,1724528183684,4773.7,9.852e-05,2]
[335842523,1724528244228,179.58,9.852e-05,2]
[335842524,1724528263828,500.0,0.0001,2]
[335842525,1724528264229,500.0,0.0001,2]
[335842526,1724528265003,227.71,0.0001,2]
[335842527,1724528309127,250.0,9.834e-05,2]
[335842529,1724528399109,275.43455531,0.00010009,2]
[335842530,1724528413538,3941.4888216,0.00010009,2]
[335842532,1724528421934,330.12,8.219e-05,2]
[335842534,1724528424241,174.09696518,0.00010009,2]
[335842535,1724528442699,320.87,9.778e-05,2]
[335842546,1724528495218,297.48958849,0.00010009,2]
[335842547,1724528504803,380.75615152,0.00010009,2]
[335842549,1724528510293,849525.41541165,0.0001,2]
[335842550,1724528510318,1562842.67991149,0.0001,2]
[335842551,1724528510345,730597.04369949,0.0001,2]
[335842552,1724528580737,1050.0,0.0001,2]
[335842554,1724528622515,270.58164358,0.00010009,2]
[335842556,1724528653618,348.08542465,0.00010009,2]
[335842557,1724528668839,1000.0,9.818e-05,2]
[335842558,1724528671386,225.24,9.806e-05,2]
[335842559,1724528696513,235.76918645,0.00010009,2]
[335842560,1724528718817,183.97,0.0001,2]
[335842565,1724528796927,155.0,0.00010009,2]
[335842566,1724528808964,528.22872048,0.00010009,2]
[335842571,1724529000390,322.3,8.219e-05,2]
[335842572,1724529001536,294.31,9.751e-05,2]
[335842592,1724529032164,-1139.1217656,0.00010026,2]
[335842594,1724529032173,-485.18668102,0.00010097,2]
[335842596,1724529032183,-155.0,0.00010097,2]
[335842598,1724529032192,-112.65285074,0.00010337,2]
[335842601,1724529032204,-163.63855106,0.00010337,2]
[335842602,1724529032214,-1169.14576903,0.00010363,2]
[335842603,1724529032223,-790.09744789,0.00010371,2]
[335842604,1724529032281,-379.04832113,0.00010371,2]
[335842605,1724529032291,-151.7994177,0.00010409,2]
[335842606,1724529032307,-65.75441726,0.00010409,2]
[335842607,1724529032317,-322.3,0.00010463,2]
[335842608,1724529032327,-150.0,0.00010466,2]
[335842609,1724529032337,-1298.23330788,0.00010471,2]
[335842610,1724529032346,-155.0,0.00010471,2]
[335842611,1724529032356,-150.0,0.00010482,2]
[335842612,1724529032369,-349.15124606,0.00010505,2]
[335842613,1724529032380,-203.60009498,0.00010505,2]
[335842614,1724529032390,-440.08291615,0.00010505,2]
[335842615,1724529032400,-156.40321698,0.00010505,2]
[335842616,1724529032409,-150.0,0.00010549,2]
[335842617,1724529032419,-300.0,0.00010565,2]
[335842618,1724529032428,-159.1610018,0.00010565,2]
[335842619,1724529032440,-140.8389982,0.00010565,2]
[335842620,1724529032449,-150.0,0.00010572,2]
[335842621,1724529032458,-134.73442486,0.00010599,2]
[335842622,1724529032474,-15.26557514,0.00010599,2]
[335842623,1724529032484,-904.9556,0.000106,2]
[335842624,1724529032493,-8327.05057558,0.000106,2]
[335842625,1724529032512,-5054.9058077,0.000106,2]
[335842634,1724529038410,-466.96530999,0.000106,2]
[335842635,1724529038422,-670.89915215,0.000106,2]
[335842704,1724529040259,-474.621015,0.000106,2]
[335842705,1724529040312,-552.33090042,0.000106,2]
[335842706,1724529040475,-348.33,0.000106,2]
[335842707,1724529040572,-2256.33146258,0.000106,2]
[335842708,1724529040584,-2439.14814662,0.000106,2]
[335842709,1724529040637,-12473.41322996,0.000106,2]
[335842710,1724529040647,-499.99,0.000106,2]
[335842711,1724529040656,-1261.8627,0.000106,2]
[335842712,1724529040665,-1819.0,0.000106,2]
[335842713,1724529040674,-150.0,0.00010604,2]
[335842714,1724529040684,-150.0,0.00010607,2]
[335842715,1724529040693,-150.0,0.00010636,2]
[335842716,1724529040703,-972.6849,0.0001069,2]
[335842717,1724529040712,-5095.2996,0.000107,2]
[335842718,1724529040722,-500.0,0.000107,2]
[335842719,1724529040731,-33047.1214,0.000107,2]
[335842720,1724529040740,-32656.7238,0.000107,2]
[335842721,1724529040750,-18705.4386,0.000107,2]
[335842722,1724529040760,-157.10906008,0.000107,2]
[335842723,1724529040769,-7500.0,0.000107,2]
[335842724,1724529040778,-972.68491,0.000107,2]
[335842725,1724529040788,-1004.0,0.000107,2]
[335842726,1724529040797,-750.1579854,0.00010713,2]
[335842727,1724529040807,-197.27215158,0.00010713,2]
[335842728,1724529040816,-1074.67923523,0.00010713,2]
[335842729,1724529040825,-972.6849,0.0001074,2]
[335842730,1724529040834,-972.6849,0.0001078,2]
[335842731,1724529040844,-582.65841063,0.00010799,2]
[335842732,1724529040853,-12646.10509813,0.000108,2]
[335842733,1724529040866,-379.28301645,0.000108,2]
[335842750,1724529043899,-21372.09951823,0.000108,2]
[335842751,1724529043950,-22850.13228136,0.000108,2]
[335842756,1724529046202,-155.0,0.00010471,2]
[335842757,1724529046212,-252.37144464,0.000108,2]
[335842758,1724529046222,-4481.5602508,0.000108,2]
[335842759,1724529046233,-60542.54694837,0.000108,2]
[335842760,1724529046244,-398.86007286,0.000108,2]
[335842761,1724529046258,-6665.99601254,0.000108,2]
[335842762,1724529046269,-332.78,0.000108,2]
[335842763,1724529046362,-11118.8489777,0.000108,2]
[335842765,1724529212905,200.0,9.947e-05,2]
[335842766,1724529264288,219.83,9.927e-05,2]
[335842768,1724529432019,500.0,0.0001,2]
[335842770,1724529496936,500.0,0.0001,2]
[335842771,1724529497343,500.0,0.0001,2]
[335842772,1724529497693,500.0,0.0001,2]
[335842773,1724529498102,500.0,0.0001,2]
[335842774,1724529498463,500.0,0.0001,2]
[335842775,1724529499252,500.0,0.0001,2]
[335842776,1724529499994,500.0,0.0001,2]
[335842777,1724529500745,500.0,0.0001,2]
[335842778,1724529501498,500.0,0.0001,2]
[335842779,1724529502271,500.0,0.0001,2]
[335842780,1724529503033,500.0,0.0001,2]
[335842781,1724529503777,500.0,0.0001,2]
[335842782,1724529504532,500.0,0.0001,2]
[335842783,1724529505276,500.0,0.0001,2]
[335842784,1724529520452,307.42,8.219e-05,2]
[335842785,1724529524152,412.55976848,0.00010009,2]
[335842786,1724529558175,155.51355483,0.00010009,2]
[335842787,1724529563834,500.0,0.0001,2]
[335842788,1724529564575,500.0,0.0001,2]
[335842789,1724529571224,500.0,0.0001,2]
[335842790,1724529573256,160.21358686,0.00010009,2]
[335842791,1724529573702,294.31,9.898e-05,2]
[335842792,1724529609573,3661.51546856,0.00010009,2]
[335842793,1724529620515,215.2327978,0.00010009,2]
[335842794,1724529629595,500.0,0.0001,2]
[335842795,1724529630347,500.0,0.0001,2]
[335842796,1724529631157,500.0,0.0001,2]
[335842797,1724529631912,500.0,0.0001,2]
[335842798,1724529632668,500.0,0.0001,2]
[335842799,1724529633444,500.0,0.0001,2]
[335842800,1724529634188,500.0,0.0001,2]
[335842801,1724529634995,500.0,0.0001,2]